fUST/lending_fUST_20250831
["ID","MTS","AMOUNT","RATE_DAILY","PERIOD"]
[382511250,1756651862353,-708.28,0.00018199,2]
[382511251,1756651862363,-480.0,0.00018199,2]
[382511252,1756651862373,-1388.38,0.00018199,2]
[382511253,1756651862383,-480.0,0.00018199,2]
[382511254,1756651862393,-1591.54,0.00018199,2]
[382511255,1756651862403,-480.0,0.00018199,2]
[382511256,1756651862413,-480.0,0.00018199,2]
[382511257,1756651862424,-622.08,0.00018199,2]
[382511258,1756651862434,-480.0,0.00018199,2]
[382511259,1756651862444,-480.0,0.00018199,2]
[382511260,1756651862454,-761.35,0.00018199,2]
[382511261,1756651862464,-544.71,0.00018199,2]
[382511262,1756651862473,-778.39,0.00018199,2]
[382511263,1756651862484,-606.86,0.00018199,2]
[382511264,1756651862494,-480.0,0.00018199,2]
[382511265,1756651862504,-774.92,0.00018199,2]
[382511266,1756651862514,-7794.42,0.00018199,2]
[382511267,1756651862524,-368.80140966,0.00018199,2]
[382511268,1756651862535,-480.0,0.00018199,2]
[382511269,1756651862544,-1681.74,0.00018199,2]
[382511270,1756651862554,-480.0,0.00018199,2]
[382511271,1756651862563,-701.26,0.00018199,2]
[382511272,1756651862573,-622.51,0.00018199,2]
[382511273,1756651862582,-3384.18,0.00018199,2]
[382511274,1756651862591,-1579.75,0.00018199,2]
[382511275,1756651862601,-480.0,0.00018199,2]
[382511276,1756651862611,-480.0,0.00018199,2]
[382511277,1756651862620,-480.0,0.00018199,2]
[382511278,1756651862629,-480.0,0.00018199,2]
[382511279,1756651862640,-958.77,0.00018199,2]
[382511280,1756651862651,-480.0,0.00018199,2]
[382511281,1756651862660,-1282.02,0.00018199,2]
[382511282,1756651862670,-1812.57,0.00018199,2]
[382511283,1756651862680,-1336.48,0.00018199,2]
[382511284,1756651862689,-848.31,0.00018199,2]
[382511285,1756651862699,-268.55060938,0.00018199,2]
[382511286,1756651862708,-485.83450265,0.00018199,2]
[382511287,1756651862718,-1829.91,0.00018199,2]
[382511288,1756651862728,-720.44,0.00018199,2]
[382511289,1756651862737,-480.0,0.00018199,2]
[382511290,1756651862747,-480.0,0.00018199,2]
[382511291,1756651862757,-480.0,0.00018199,2]
[382511292,1756651862766,-1239.11,0.00018199,2]
[382511293,1756651862776,-1398.95,0.00018199,2]
[382511294,1756651862787,-481.18,0.00018199,2]
[382511295,1756651862797,-480.0,0.00018199,2]
[382511296,1756651862807,-480.0,0.00018199,2]
[382511297,1756651862816,-3481.83,0.00018199,2]
[382511298,1756651862826,-480.0,0.00018199,2]
[382511299,1756651862836,-916.75,0.00018199,2]
[382511300,1756651862847,-480.0,0.00018199,2]
[382511301,1756651862857,-491.68,0.00018199,2]
[382511302,1756651862867,-1362.67,0.00018199,2]
[382511303,1756651862877,-728.12,0.00018199,2]
[382511304,1756651862888,-480.0,0.00018199,2]
[382511305,1756651862897,-492.68,0.00018199,2]
[382511306,1756651862906,-480.0,0.00018199,2]
[382511307,1756651862916,-1688.85,0.00018199,2]
[382511308,1756651862927,-1724.71,0.00018199,2]
[382511309,1756651862936,-480.0,0.00018199,2]
[382511310,1756651862945,-1113.13,0.00018199,2]
[382511311,1756651862955,-480.0,0.00018199,2]
[382511312,1756651862964,-980.22,0.00018199,2]
[382511313,1756651862974,-780.87,0.00018199,2]
[382511314,1756651862983,-480.0,0.00018199,2]
[382511315,1756651862993,-600.4,0.00018199,2]
[382511316,1756651863002,-480.0,0.00018199,2]
[382511317,1756651863012,-480.0,0.00018199,2]
[382511318,1756651863022,-480.0,0.00018199,2]
[382511319,1756651863031,-2079.2,0.00018199,2]
[382511320,1756651863041,-819.39,0.00018199,2]
[382511321,1756651863051,-480.0,0.00018199,2]
[382511322,1756651863061,-618.55,0.00018199,2]
[382511323,1756651863070,-857.74,0.00018199,2]
[382511324,1756651863080,-480.0,0.00018199,2]
[382511325,1756651863089,-1000.0,0.00018199,2]
[382511326,1756651863099,-1043.49,0.00018199,2]
[382511327,1756651863108,-480.0,0.00018199,2]
[382511328,1756651863118,-480.0,0.00018199,2]
[382511329,1756651863127,-520.73,0.00018199,2]
[382511330,1756651863137,-333.21432049,0.0001821,2]
[382511331,1756651863147,-638.05,0.0001821,2]
[382511332,1756651863156,-2459.16,0.0001821,2]
[382511333,1756651863166,-1473.87,0.0001821,2]
[382511334,1756651863179,-546.57,0.0001821,2]
[382511335,1756651863190,-823.55,0.0001821,2]
[382511336,1756651863200,-1640.84,0.0001821,2]
[382511337,1756651863209,-937.51,0.0001821,2]
[382511338,1756651863221,-480.0,0.0001821,2]
[382511339,1756651863230,-1598.22,0.0001821,2]
[382511340,1756651863355,-1087.39,0.0001821,2]
[382511341,1756651863365,-1368.75,0.0001821,2]
[382511342,1756651863375,-760.45,0.0001821,2]
[382511343,1756651863386,-782.4,0.0001821,2]
[382511344,1756651863396,-480.0,0.0001821,2]
[382511345,1756651863405,-480.0,0.0001821,2]
[382511346,1756651863415,-480.0,0.0001821,2]
[382511347,1756651863425,-498.92,0.0001821,2]
[382511348,1756651863436,-988.17,0.0001821,2]
[382511349,1756651863446,-480.0,0.0001821,2]
[382511350,1756651863456,-887.17,0.0001821,2]
[382511351,1756651863466,-594.12225828,0.0001821,2]
[382511352,1756651863476,-480.0,0.0001821,2]
[382511353,1756651863486,-1241.0,0.0001821,2]
[382511354,1756651863495,-480.0,0.0001821,2]
[382511355,1756651863505,-515.15,0.0001821,2]
[382511356,1756651863515,-1166.43,0.0001821,2]
[382511357,1756651863525,-480.0,0.0001821,2]
[382511358,1756651863534,-772.65,0.0001821,2]
[382511359,1756651863544,-480.0,0.0001821,2]
[382511360,1756651863554,-279.75704902,0.0001821,2]
[382511361,1756651863564,-480.0,0.0001821,2]
[382511362,1756651863574,-1136.59,0.0001821,2]
[382511363,1756651863584,-2003.24,0.0001821,2]
[382511364,1756651863594,-480.0,0.0001821,2]
[382511365,1756651863604,-480.0,0.0001821,2]
[382511366,1756651863614,-547.42,0.0001821,2]
[382511367,1756651863624,-480.0,0.0001821,2]
[382511368,1756651863634,-536.29,0.0001821,2]
[382511369,1756651863644,-917.68,0.0001821,2]
[382511370,1756651863653,-529.93,0.0001821,2]
[382511371,1756651863663,-168.0,0.00018215,2]
[382511372,1756651863673,-501.09309869,0.00018221,2]
[382511373,1756651863684,-432.56640123,0.00018221,2]
[382511374,1756651863695,-629.53150776,0.00018221,2]
[382511375,1756651863704,-1000.0,0.00018221,2]
[382511376,1756651863714,-1000.0,0.00018221,2]
[382511377,1756651863724,-1000.0,0.00018221,2]
[382511378,1756651863735,-1000.0,0.00018221,2]
[382511379,1756651863746,-510.94333666,0.00018221,2]
[382511380,1756651863757,-1000.0,0.00018221,2]
[382511381,1756651863767,-1000.0,0.00018221,2]
[382511382,1756651863776,-1000.0,0.00018221,2]
[382511383,1756651863786,-1000.0,0.00018221,2]
[382511384,1756651863797,-500.8666213,0.00018221,2]
[382511385,1756651863807,-1000.0,0.00018221,2]
[382511386,1756651863816,-1000.0,0.00018221,2]
[382511387,1756651863826,-713.79428328,0.00018221,2]
[382511388,1756651863835,-1019.97580936,0.00018221,2]
[382511389,1756651863846,-1000.0,0.00018221,2]
[382511390,1756651863855,-1000.0,0.00018221,2]
[382511391,1756651863865,-1000.0,0.00018221,2]
[382511392,1756651863874,-1000.0,0.00018221,2]
[382511393,1756651863884,-1000.0,0.00018221,2]
[382511394,1756651863894,-187.2916484,0.0001825,2]
[382511395,1756651863902,-153.658742,0.00018255,15]
[382511396,1756651863912,-153.658742,0.00018255,15]
[382511397,1756651863921,-153.658742,0.00018255,15]
[382511398,1756651863931,-153.658742,0.00018257,10]
[382511399,1756651863940,-506.0,0.00018269,2]
[382511400,1756651863950,-151.0,0.00018295,2]
[382511401,1756651863960,-600.0,0.000183,2]
[382511402,1756651863969,-480.0,0.00018307,2]
[382511403,1756651863979,-480.0,0.00018309,2]
[382511404,1756651863988,-480.0,0.00018309,2]
[382511405,1756651863999,-480.0,0.00018309,2]
[382511406,1756651864008,-480.0,0.00018309,2]
[382511407,1756651864018,-525.75,0.00018309,2]
[382511408,1756651864027,-573.89,0.00018309,2]
[382511409,1756651864036,-480.0,0.00018309,2]
[382511410,1756651864045,-480.0,0.00018309,2]
[382511411,1756651864055,-480.0,0.00018309,2]
[382511412,1756651864065,-1349.62,0.00018309,2]
[382511413,1756651864075,-672.35,0.00018309,2]
[382511414,1756651864084,-604.81,0.00018309,2]
[382511415,1756651864094,-672.18,0.00018309,2]
[382511416,1756651864103,-480.0,0.00018309,2]
[382511417,1756651864113,-480.0,0.00018309,2]
[382511418,1756651864123,-1372.41,0.00018309,2]
[382511419,1756651864133,-480.0,0.00018309,2]
[382511420,1756651864142,-480.0,0.00018309,2]
[382511421,1756651864152,-480.0,0.00018309,2]
[382511422,1756651864162,-480.0,0.00018309,2]
[382511423,1756651864177,-711.19,0.00018309,2]
[382511424,1756651864189,-480.0,0.00018309,2]
[382511425,1756651864199,-480.0,0.00018309,2]
[382511426,1756651864214,-480.0,0.00018309,2]
[382511427,1756651864237,-556.63,0.00018309,2]
[382511428,1756651864255,-480.0,0.00018309,2]
[382511429,1756651864276,-480.0,0.00018309,2]
[382511430,1756651864297,-480.0,0.00018309,2]
[382511431,1756651864315,-480.0,0.00018309,2]
[382511432,1756651864332,-527.57,0.00018309,2]
[382511433,1756651864349,-480.0,0.00018309,2]
[382511434,1756651864364,-528.02,0.00018309,2]
[382511435,1756651864382,-480.0,0.00018309,2]
[382511436,1756651864402,-812.64,0.00018309,2]
[382511437,1756651864420,-527.3,0.00018309,2]
[382511438,1756651864435,-480.0,0.00018309,2]
[382511439,1756651864454,-536.23,0.00018309,2]
[382511440,1756651864468,-480.0,0.00018309,2]
[382511441,1756651864484,-480.0,0.00018309,2]
[382511442,1756651864500,-480.0,0.00018309,2]
[382511443,1756651864515,-416.95114487,0.00018309,2]
[382511444,1756651864531,-480.0,0.00018309,2]
[382511445,1756651864546,-480.0,0.00018309,2]
[382511446,1756651864561,-480.0,0.00018309,2]
[382511447,1756651864576,-480.0,0.00018309,2]
[382511448,1756651864591,-480.0,0.00018309,2]
[382511449,1756651864606,-480.0,0.00018309,2]
[382511450,1756651864621,-599.75,0.00018309,2]
[382511451,1756651864636,-620.91725656,0.00018309,2]
[382511452,1756651864650,-480.0,0.00018309,2]
[382511453,1756651864665,-480.0,0.00018309,2]
[382511454,1756651864681,-480.0,0.00018309,2]
[382511455,1756651864695,-627.93,0.00018309,2]
[382511456,1756651864711,-480.0,0.00018309,2]
[382511457,1756651864725,-480.0,0.00018309,2]
[382511458,1756651864739,-927.7,0.00018309,2]
[382511459,1756651864755,-480.0,0.00018309,2]
[382511460,1756651864769,-480.0,0.00018309,2]
[382511461,1756651864783,-480.0,0.00018309,2]
[382511462,1756651864796,-480.0,0.00018309,2]
[382511463,1756651864812,-500.0,0.00018309,2]
[382511464,1756651864827,-1036.3,0.00018309,2]
[382511465,1756651864842,-480.0,0.00018309,2]
[382511466,1756651864856,-480.0,0.00018309,2]
[382511467,1756651864870,-480.0,0.00018309,2]
[382511468,1756651864885,-480.0,0.00018309,2]
[382511469,1756651864899,-480.0,0.00018309,2]
[382511470,1756651864914,-555.89,0.00018309,2]
[382511471,1756651864932,-480.0,0.00018309,2]
[382511472,1756651864947,-480.0,0.00018309,2]
[382511473,1756651864962,-694.21,0.00018309,2]
[382511474,1756651864977,-272.52744143,0.00018309,2]
[382511475,1756651864990,-480.0,0.00018309,2]
[382511476,1756651865005,-480.0,0.00018309,2]
[382511477,1756651865020,-480.0,0.00018309,2]
[382511478,1756651865034,-1121.22,0.00018309,2]
[382511479,1756651865051,-558.04,0.00018309,2]
[382511480,1756651865066,-480.0,0.00018309,2]
[382511481,1756651865081,-384.98239641,0.00018309,2]
[382511482,1756651865095,-480.0,0.00018309,2]
[382511483,1756651865111,-596.72,0.00018309,2]
[382511484,1756651865125,-480.0,0.00018309,2]
[382511485,1756651865141,-480.0,0.00018309,2]
[382511486,1756651865157,-480.0,0.00018309,2]
[382511487,1756651865175,-703.8,0.00018309,2]
[382511488,1756651865191,-1631.16,0.00018309,2]
[382511489,1756651865207,-480.0,0.00018309,2]
[382511490,1756651865224,-600.81,0.00018309,2]
[382511491,1756651865239,-876.15,0.00018309,2]
[382511492,1756651865256,-480.0,0.00018309,2]
[382511493,1756651865272,-568.98,0.00018309,2]
[382511494,1756651865288,-480.0,0.00018309,2]
[382511495,1756651865303,-480.0,0.00018309,2]
[382511496,1756651865318,-480.0,0.00018309,2]
[382511497,1756651865334,-523.9,0.0001831,2]
[382511498,1756651865349,-480.0,0.0001831,2]
[382511499,1756651865365,-872.97,0.0001831,2]
[382511500,1756651865381,-480.0,0.0001831,2]
[382511501,1756651865398,-1309.14,0.0001831,2]
[382511502,1756651865413,-267.69012047,0.0001831,2]
[382511503,1756651865428,-1309.99,0.0001831,2]
[382511504,1756651865444,-632.21,0.0001831,2]
[382511505,1756651865457,-480.0,0.0001831,2]
[382511506,1756651865467,-480.0,0.0001831,2]
[382511507,1756651865476,-481.15,0.0001831,2]
[382511508,1756651865486,-480.0,0.0001831,2]
[382511509,1756651865496,-689.78,0.0001831,2]
[382511510,1756651865505,-480.0,0.00018318,2]
[382511511,1756651865514,-623.37,0.00018318,2]
[382511512,1756651865738,-480.0,0.00018318,2]
[382511513,1756651865768,-200.64869876,0.00018321,2]
[382511514,1756651865777,-45015.47936265,0.00018322,2]
[382511515,1756651867731,-292.37934074,0.00017276,2]
[382511516,1756651868230,-187.62065926,0.00017276,2]
[382511517,1756651868240,-139.65435006,0.00017377,2]
[382511518,1756651868941,-480.0,0.00017276,2]
[382511519,1756651868951,-340.34564994,0.00017377,2]
[382511520,1756651868961,-480.0,0.00017377,2]
[382511521,1756651868970,-480.0,0.00017377,2]
[382511522,1756651868980,-151.0,0.00017487,2]
[382511523,1756651868989,-151.0,0.00017487,2]
[382511524,1756651868998,-151.0,0.00017487,2]
[382511525,1756651869007,-151.0,0.00017487,2]
[382511526,1756651869016,-480.0,0.0001755,2]
[382511527,1756651869026,-151.158634,0.00017551,2]
[382511528,1756651869037,-151.0,0.00017551,2]
[382511529,1756651869046,-151.0,0.00017551,2]
[382511530,1756651869056,-199.504595,0.00017551,2]
[382511531,1756651869066,-151.0,0.00017651,2]
[382511532,1756651869075,-151.0,0.00017651,2]
[382511533,1756651869085,-191.13,0.00017651,2]
[382511534,1756651869095,-151.0,0.00017673,2]
[382511535,1756651869104,-151.0,0.00017673,2]
[382511536,1756651869114,-480.0,0.00017824,2]
[382511537,1756651869124,-151.0,0.00017825,2]
[382511538,1756651869134,-151.0,0.00017825,2]
[382511539,1756651869143,-289.974,0.00018095,2]
[382511540,1756651869154,-150.0,0.00018095,2]
[382511541,1756651869163,-480.0,0.00018098,2]
[382511542,1756651869176,-26247.28029471,0.00018322,2]
[382511543,1756651892691,3771.80401917,0.00017251,2]
[382511544,1756651892718,1228.19598083,0.00017251,2]
[382511545,1756651908917,421.92430339,0.00017251,2]
[382511546,1756651917948,317.35696068,0.00017251,2]
[382511547,1756651937963,329.68716569,0.00017175,2]
[382511548,1756651949558,-300.0,0.00017274,2]
[382511549,1756651949585,-1200.0,0.00017274,2]
[382511550,1756651949614,-170.07161935,0.00017275,2]
[382511551,1756651949641,-480.0,0.00017275,2]
[382511552,1756651949669,-841.98,0.00017275,2]
[382511553,1756651949697,-500.0,0.00017275,2]
[382511554,1756651949724,-500.0,0.00017275,2]
[382511555,1756651949751,-500.0,0.00017275,2]
[382511556,1756651949782,-500.0,0.00017275,2]
[382511557,1756651949812,-500.0,0.00017275,2]
[382511558,1756651949838,-500.0,0.00017275,2]
[382511559,1756651949867,-500.0,0.00017275,2]
[382511560,1756651949894,-500.0,0.00017275,2]
[382511561,1756651949925,-500.0,0.00017275,2]
[382511562,1756651949956,-500.0,0.00017275,2]
[382511563,1756651949988,-500.0,0.00017275,2]
[382511564,1756651950021,-500.0,0.00017275,2]
[382511565,1756651950051,-500.0,0.00017275,2]
[382511566,1756651950080,-500.0,0.00017275,2]
[382511567,1756651950107,-419.85862049,0.00017275,2]
[382511568,1756651950138,-500.0,0.00017275,2]
[382511569,1756651950169,-500.0,0.00017275,2]
[382511570,1756651950204,-500.0,0.00017275,2]
[382511571,1756651950237,-500.0,0.00017275,2]
[382511572,1756651950268,-500.0,0.00017275,2]
[382511573,1756651950300,-500.0,0.00017275,2]
[382511574,1756651950328,-500.0,0.00017275,2]
[382511575,1756651950358,-500.0,0.00017275,2]
[382511576,1756651950388,-500.0,0.00017275,2]
[382511577,1756651950418,-500.0,0.00017275,2]
[382511578,1756651950449,-500.0,0.00017275,2]
[382511579,1756651950480,-500.0,0.00017275,2]
[382511580,1756651950510,-196.23153894,0.00017275,2]
[382511581,1756651950541,-500.0,0.00017275,2]
[382511582,1756651950572,-500.0,0.00017275,2]
[382511583,1756651950605,-500.0,0.00017275,2]
[382511584,1756651950637,-500.0,0.00017275,2]
[382511585,1756651950668,-500.0,0.00017275,2]
[382511586,1756651950699,-500.0,0.00017275,2]
[382511587,1756651950731,-500.0,0.00017275,2]
[382511588,1756651950761,-500.0,0.00017275,2]
[382511589,1756651950790,-500.0,0.00017275,2]
[382511590,1756651950822,-500.0,0.00017275,2]
[382511591,1756651950852,-500.0,0.00017275,2]
[382511592,1756651950882,-500.0,0.00017275,2]
[382511593,1756651950913,-500.0,0.00017275,2]
[382511594,1756651950944,-500.0,0.00017275,2]
[382511595,1756651950976,-500.0,0.00017275,2]
[382511596,1756651951172,-500.0,0.00017275,2]
[382511597,1756651951206,-500.0,0.00017275,2]
[382511598,1756651951237,-500.0,0.00017275,2]
[382511599,1756651951268,-500.0,0.00017275,2]
[382511600,1756651951299,-500.0,0.00017275,2]
[382511601,1756651951331,-500.0,0.00017275,2]
[382511602,1756651951362,-500.0,0.00017275,2]
[382511603,1756651951394,-500.0,0.00017275,2]
[382511604,1756651951426,-500.0,0.00017275,2]
[382511605,1756651951459,-500.0,0.00017275,2]
[382511606,1756651951491,-500.0,0.00017275,2]
[382511607,1756651951524,-500.0,0.00017275,2]
[382511608,1756651951559,-500.0,0.00017275,2]
[382511609,1756651951591,-500.0,0.00017275,2]
[382511610,1756651951623,-500.0,0.00017275,2]
[382511611,1756651951657,-500.0,0.00017275,2]
[382511612,1756651951690,-500.0,0.00017275,2]
[382511613,1756651951719,-706.95,0.00017275,2]
[382511614,1756651951749,-500.0,0.00017275,2]
[382511615,1756651951780,-500.0,0.00017275,2]
[382511616,1756651951810,-500.0,0.00017275,2]
[382511617,1756651951840,-500.0,0.00017275,2]
[382511618,1756651951871,-500.0,0.00017275,2]
[382511619,1756651951902,-500.0,0.00017275,2]
[382511620,1756651951932,-500.0,0.00017275,2]
[382511621,1756651951961,-500.0,0.00017275,2]
[382511622,1756651951990,-200.0,0.00017275,2]
[382511623,1756651952019,-500.0,0.00017275,2]
[382511624,1756651952050,-500.0,0.00017275,2]
[382511625,1756651952079,-500.0,0.00017275,2]
[382511626,1756651952108,-500.0,0.00017275,2]
[382511627,1756651952138,-500.0,0.00017275,2]
[382511628,1756651952169,-500.0,0.00017275,2]
[382511629,1756651952202,-500.0,0.00017275,2]
[382511630,1756651952232,-500.0,0.00017275,2]
[382511631,1756651952264,-500.0,0.00017275,2]
[382511632,1756651952297,-500.0,0.00017275,2]
[382511633,1756651952329,-500.0,0.00017275,2]
[382511634,1756651952358,-500.0,0.00017275,2]
[382511635,1756651952388,-500.0,0.00017275,2]
[382511636,1756651952419,-500.0,0.00017275,2]
[382511637,1756651952454,-500.0,0.00017275,2]
[382511638,1756651952487,-480.0,0.00017275,2]
[382511639,1756651952516,-2001.56,0.00017275,2]
[382511640,1756651952551,-485.26,0.00017276,2]
[382511641,1756651952578,-480.0,0.00017276,2]
[382511642,1756651952612,-480.0,0.00017276,2]
[382511643,1756651952645,-860.66,0.00017276,2]
[382511644,1756651952681,-480.0,0.00017276,2]
[382511645,1756651952717,-480.0,0.00017276,2]
[382511646,1756651952747,-937.63,0.00017276,2]
[382511647,1756651952781,-1274.25,0.00017276,2]
[382511648,1756651952811,-580.35958199,0.00017276,2]
[382511649,1756651952844,-480.0,0.00017276,2]
[382511650,1756651952877,-631.24,0.00017276,2]
[382511651,1756651952907,-913.03,0.00017276,2]
[382511652,1756651952935,-480.0,0.00017276,2]
[382511653,1756651952973,-1207.49,0.00017277,2]
[382511654,1756651953001,-480.0,0.00017277,2]
[382511655,1756651953032,-1316.26,0.00017277,2]
[382511656,1756651953062,-480.0,0.00017277,2]
[382511657,1756651953092,-784.34,0.00017277,2]
[382511658,1756651953123,-1494.11,0.00017277,2]
[382511659,1756651953152,-1174.88,0.00017277,2]
[382511660,1756651953181,-480.0,0.00017277,2]
[382511661,1756651953211,-925.37,0.00017277,2]
[382511662,1756651953240,-480.0,0.00017277,2]
[382511663,1756651953268,-581.71,0.00017277,2]
[382511664,1756651953299,-4749.57,0.00017277,2]
[382511665,1756651953328,-480.0,0.00017277,2]
[382511666,1756651953358,-1212.91,0.00017277,2]
[382511667,1756651953387,-480.0,0.00017277,2]
[382511668,1756651953416,-1575.69,0.00017277,2]
[382511669,1756651953446,-1604.72,0.00017277,2]
[382511670,1756651953477,-978.52,0.00017277,2]
[382511671,1756651953505,-480.0,0.00017277,2]
[382511672,1756651953534,-2261.99,0.00017277,2]
[382511673,1756651953563,-480.0,0.00017277,2]
[382511674,1756651953592,-535.53,0.00017277,2]
[382511675,1756651953620,-480.0,0.00017277,2]
[382511676,1756651953649,-480.0,0.00017277,2]
[382511677,1756651953678,-480.0,0.00017277,2]
[382511678,1756651953848,-480.0,0.00017277,2]
[382511679,1756651953877,-1041.8,0.00017277,2]
[382511680,1756651953905,-480.0,0.00017277,2]
[382511681,1756651953932,-1246.29,0.00017277,2]
[382511682,1756651953968,-480.0,0.00017277,2]
[382511683,1756651953996,-1231.5,0.00017277,2]
[382511684,1756651954024,-480.0,0.00017277,2]
[382511685,1756651954052,-523.52,0.00017277,2]
[382511686,1756651954208,480.0,0.00017276,2]
[382511687,1756651954583,800.79822403,0.00017175,2]
[382511688,1756651955696,10000.01,0.00017177,2]
[382511689,1756651955725,10000.01,0.00017177,2]
[382511690,1756651955752,10000.01,0.00017177,2]
[382511691,1756651955780,10000.01,0.00017177,2]
[382511692,1756651955811,211013.9204152,0.00017177,2]
[382511693,1756651955839,7702.84558941,0.00017177,2]
[382511694,1756651955866,10000.01,0.00017177,2]
[382511695,1756651955892,10000.01,0.00017177,2]
[382511696,1756651955919,10000.01,0.00017177,2]
[382511697,1756651955945,10000.01,0.00017177,2]
[382511698,1756651955972,10000.01,0.00017177,2]
[382511699,1756651955999,10000.01,0.00017177,2]
[382511700,1756651956026,10000.01,0.00017177,2]
[382511701,1756651956054,10000.01,0.00017177,2]
[382511702,1756651956083,10000.01,0.00017177,2]
[382511703,1756651956116,21283.10399539,0.00017177,2]
[382511704,1756651956153,869.68,0.00017276,2]
[382511705,1756651956629,9130.33,0.00017277,2]
[382511706,1756651956656,10000.01,0.00017277,2]
[382511707,1756651956683,10000.01,0.00017277,2]
[382511708,1756651956708,10000.01,0.00017277,2]
[382511709,1756651956733,559.4124508,0.00017277,2]
[382511710,1756651956846,160.0,0.00017274,2]
[382511711,1756651957223,740.26,0.00017277,2]
[382511712,1756651958107,480.0,0.00017276,2]
[382511713,1756651958814,500.0,0.00017276,2]
[382511714,1756651958850,379.98429117,0.00017276,2]
[382511715,1756651958888,500.0,0.00017276,2]
[382511716,1756651958940,500.0,0.00017276,2]
[382511717,1756651958979,500.0,0.00017276,2]
[382511718,1756651959021,500.0,0.00017276,2]
[382511719,1756651959060,500.0,0.00017276,2]
[382511720,1756651959131,500.0,0.00017276,2]
[382511721,1756651959187,500.0,0.00017276,2]
[382511722,1756651959233,589.62315389,0.00017276,2]
[382511723,1756651959284,500.0,0.00017276,2]
[382511724,1756651959370,203.76658486,0.00017276,2]
[382511725,1756651960967,150.78889555,0.00017275,2]
[382511726,1756651961825,480.0,0.00017275,2]
[382511727,1756651962243,500.0,0.00017275,2]
[382511728,1756651968358,1256.17462373,0.00017276,2]
[382511729,1756651968387,2273.35537627,0.00017276,2]
[382511730,1756651969674,7627.2,0.00017277,2]
[382511731,1756651974218,99.45462373,0.00017277,2]
[382511732,1756651979387,395.39894139,0.00017251,2]
[382511733,1756651980609,9604.61105861,0.00017176,2]
[382511734,1756651980635,10000.01,0.00017176,2]
[382511735,1756651980661,10000.01,0.00017176,2]
[382511736,1756651980685,5474.96883534,0.00017176,2]
[382511737,1756651987854,4525.04116466,0.00017251,2]
[382511738,1756651987887,474.95883534,0.00017251,2]
[382511739,1756651996403,5000.0,0.00017251,2]
[382511740,1756652002169,1437.0,0.00027397,120]
[382511741,1756652010953,156.0,8.5e-07,2]
[382511742,1756652012052,156.0,8.5e-07,2]
[382511743,1756652012648,4213.05116466,0.00017251,2]
[382511744,1756652012674,786.94883534,0.00017251,2]
[382511745,1756652013107,156.0,8.5e-07,2]
[382511746,1756652014175,156.0,8.5e-07,2]
[382511747,1756652015235,156.0,8.5e-07,2]
[382511748,1756652015813,8745.06116466,0.00016483,2]
[382511749,1756652015841,10000.01,0.00016483,2]